[Event "SixDays Budapest March IM C 2025"]
[Site "Budapest"]
[Date "2025.03.26"]
[Round "4.5"]
[White "Bashirov, Kemal"]
[Black "Arias Gaviria, Mario Alexis"]
[Result "1-0"]
[Annotator "TA"]
[ECO "B00"]
[WhiteElo "2336"]
[BlackElo "2284"]
[PlyCount "119"]
[EventDate "2025.03.23"]
[EventCountry "HUN"]
[SourceTitle "playchess.com"]
[Source "ChessBase"]
[SourceQuality "1"]
[TimeControl "5400+30"]

{[%evp 9,119,21,37,5,25,-10,11,-8,96,104,103,97,126,126,132,133,161,133,142,104,115,94,112,56,54,36,60,50,50,47,51,58,75,77,86,79,101,103,99,66,92,95,99,87,100,120,99,89,150,127,131,141,170,154,251,211,202,193,202,198,188,191,432,239,273,235,433,428,379,366,461,468,460,426,644,625,553,591,487,471,2265,2185,2331,2252,3443,1992,29974,29977,29972,29978,29978,29979,29978,29979,29979,29976,29971,11447,29982,130,29984,29985,29984,29982,29981,6107,29989,29990,29992,29993,29995,29996]} 1. e4 {[%emt 0:00:02]} Nc6 {[%emt 0:22:53]} 2. d4 {[%emt 0:00:17]} d5 {[%emt 0:00:03]} 3. e5 {[%emt 0:00:18]} Bf5 {[%emt 0:00:04]} 4. Nf3 {[%emt 0:02:26]} e6 {[%emt 0:00:14]} 5. Be2 {[%emt 0:03:10]} Nge7 {[%emt 0:09:36]} 6. c3 {[%emt 0:03:04] B00: Queen's Fianchetto Defence, Nimzowitsch Defence.} f6 {[%emt 0:03:34]} 7. Bf4 {[%emt 0:07:24]} Ng6 {[%emt 0:01:38]} 8. Bg3 {[%emt 0:02:07] The position is equal.} Bxb1 $146 {[%emt 0:15:52]} (8... fxe5 $11 9. dxe5 h5) ({Predecessor:} 8... fxe5 9. Nxe5 Ngxe5 10. dxe5 Qd7 11. O-O O-O-O 12. b4 g5 13. b5 Na5 14. Qd4 b6 {0-1 Pacheco Lugo,A (2127)-Vusatiuk,V (2308) Titled Tuesday intern op 19th Apr Early blitz 2022 (7)}) 9. Rxb1 $16 {[%emt 0:06:01]} Qd7 {[%emt 0:01:34]} 10. Bd3 {[%emt 0:08:41]} f5 {[%emt 0:05:08]} 11. b4 {[%emt 0:14:05]} Nd8 {[%emt 0:00:29]} 12. h4 {[%emt 0:00:56]} Ne7 {[%emt 0:03:00][%cal Bg6e7,Be7c8,Bc8b6][%mdl 32]} 13. Nd2 {[%emt 0:08:04]} Nc8 {[%emt 0:01:59]} 14. a4 {[%emt 0:02:48] White is much more active.} a5 {[%emt 0:00:55]} 15. b5 {[%emt 0:06:02]} Nb6 {[%emt 0:01:13]} 16. h5 {[%emt 0:01:31]} (16. Bf4 $16) 16... Nf7 $14 {[%emt 0:00:15]} 17. Bf4 {[%emt 0:01:29]} Be7 {[%emt 0:00:46]} 18. Ra1 {[%emt 0:00:17]} Bg5 {[%emt 0:04:22]} 19. Qf3 {[%emt 0:00:29]} Bxf4 {[%emt 0:00:51]} 20. Qxf4 {[%emt 0:00:04]} Qe7 {[%emt 0:00:10]} 21. Nb3 {[%emt 0:04:18]} Nd7 {[%emt 0:01:32]} 22. O-O {[%emt 0:02:31][%cal Bh1f1,Bf1c1,Bc1c2][%mdl 32]} Qg5 {[%emt 0:02:47]} 23. Qxg5 {[%emt 0:03:06]} Nxg5 {[%emt 0:00:02]} 24. c4 {[%emt 0:00:04]} dxc4 {[%emt 0:05:07]} 25. Bxc4 {[%emt 0:00:04]} f4 {[%emt 0:03:57]} 26. Rfc1 {[%emt 0:01:08]} Ke7 {[%emt 0:00:14]} 27. Bd3 {[%emt 0:00:06]} Rhc8 {[%emt 0:00:46]} 28. Rc2 {[%emt 0:02:52]} Ra7 {[%emt 0:09:30] [#]} ({Black should play} 28... Nb6 29. Nc5 Ra7) 29. Rac1 $1 $16 {[%emt 0:00:30]} Kd8 {[%emt 0:00:24]} 30. f3 {[%emt 0:01:09][%cal Bf2f3,Bf3e4][%mdl 32]} Nb6 {[%emt 0:02:54]} 31. Nc5 $36 {[%emt 0:00:40][%mdl 2048] White is on the roll.} h6 {[%emt 0:03:24]} (31... Ke7 $16 32. Kh2 h6) 32. Kf2 {[%emt 0:02:59]} Ke7 {[%emt 0:00:24]} 33. Be4 {[%emt 0:04:37]} Rd8 {[%emt 0:00:43]} 34. Nb3 {[%emt 0:03:45]} (34. Nxb7 $2 Nxe4+ (34... Rxd4 $2 35. Rxc7+ Rd7 36. Rxd7+ Kxd7 37. Rd1+ Ke7 38. Nd8 $18) 35. fxe4 Rxb7 $19) 34... Nxe4+ {[%emt 0:00:36]} 35. fxe4 {[%emt 0:00:04]} Nxa4 $2 {[%emt 0:00:26]} (35... c6 {is a better defense.} 36. bxc6 bxc6 37. Rxc6 Nxa4 38. Rc7+ Rxc7 39. Rxc7+ Kf8) 36. Ra1 {[%emt 0:01:58]} (36. Rxc7+ $142 Kf8 37. Kf3) 36... Nb6 $18 {[%emt 0:00:07]} 37. Rxc7+ {[%emt 0:00:05]} Rd7 $2 {[%emt 0:00:44]} (37... Kf8 38. Nc5 (38. Rxa5 Rxa5 39. Nxa5 Rxd4 $18) 38... Re8 39. Rxb7 Rxb7) 38. Rxd7+ {[%emt 0:00:04]} Kxd7 {[%emt 0:00:06]} 39. Rxa5 {[%emt 0:00:03]} ({Less strong is} 39. Nxa5 Nc4 40. Nb3 Rxa1 41. Nxa1 Nd2 $14) 39... Rxa5 40. Nxa5 {[%emt 0:00:03][%mdl 4096] Endgame KN-KN. White is a pawn up.} Kc7 {[%emt 0:00:23]} 41. Kf3 {[%emt 0:00:04]} Na4 {[%emt 0:01:28]} (41... Kb8 $142 42. Nb3 (42. Kxf4 Na4 $18) 42... Nd7 43. Kxf4 Kc8) 42. Nc4 {[%emt 0:00:05]} Nc3 {[%emt 0:00:38]} 43. Nd6 {[%emt 0:00:24]} Kb6 {[%emt 0:00:14]} 44. Kxf4 {[%emt 0:00:08]} Nxb5 {[%emt 0:00:53]} (44... Kc7 $142 45. Ke3 Na4 46. Ne8+ Kd7 47. Nxg7 Nc3) 45. Nxb5 {[%emt 0:00:31]} Kxb5 {[%emt 0:00:02] KP-KP. White is a pawn up.} 46. d5 {[%emt 0:00:04][%cal Bd4d5,Bd5d6][%mdl 32]} Kb6 {[%emt 0:00:38]} 47. Ke3 {[%emt 0:00:48] Hoping for Kd4.} Kc5 {[%emt 0:00:52]} 48. d6 {[%emt 0:00:42]} Kc6 {[%emt 0:00:20]} 49. Kd4 {[%emt 0:00:01]} Kb6 {[%emt 0:00:38]} 50. Kc4 {[%emt 0:00:10]} Kc6 {[%emt 0:00:05]} 51. Kb4 {[%emt 0:00:04]} Kb6 {[%emt 0:00:27]} 52. Ka4 {[%emt 0:00:03]} Kc6 {[%emt 0:00:03]} 53. Ka5 {[%emt 0:00:06]} b5 {[%emt 0:00:36]} 54. g3 $2 {[%emt 0:00:28]} (54. g4 {mates} b4 55. Kxb4 Kb6 56. Ka4 Kc6 57. Ka5 Kc5 58. d7 Kd4 59. d8=Q+ (59. d8=R+ Kxe5 60. Rd7 Kf6 $18) 59... Kxe5 60. Qc7+ Kxe4 61. Qxg7) 54... b4 $2 {[%emt 0:00:19][%mdl 8192] [#] This costs Black the game.} (54... Kb7 $16 55. Kxb5 Kc8 56. Kc6 Kd8 57. d7 (57. g4 g5 58. hxg6 Ke8 59. d7+ Ke7 60. Kc7 Kf8 61. d8=Q+ Kg7 62. Qf6+ Kg8 63. Qf7+ Kh8 64. Qh7#) 57... g6 58. hxg6 Ke7 59. g4 (59. Kc7 Kf8 60. d8=Q+ Kg7 61. Qf6+ Kg8 62. Qf7+ Kh8 63. Qh7#) 59... Kf8 60. d8=Q+ (60. d8=R+ Kg7 $18) 60... Kg7 61. Qf6+ Kg8 62. Qf7+ Kh8 63. Qh7#) 55. Kxb4 {[%emt 0:00:03]} Kb6 {[%emt 0:00:03]} 56. Ka4 {[%emt 0:00:03]} Kc6 {[%emt 0:00:11]} 57. Ka5 {[%emt 0:00:03] Intending g4 and mate.} Kd7 {[%emt 0:00:15]} 58. Kb6 {[%emt 0:00:02] White mates.} Kd8 {[%emt 0:00:10]} 59. Kc6 {[%emt 0:00:04]} Kc8 {[%emt 0:00:24]} 60. d7+ {[%emt 0:00:05] Weighted Error Value: White=0.29 (precise) /Black=0.84  Mistake:       	White=2     	Black=7      Inaccurate:     	White=2     	---        OK:         	White=15    	Black=16     Best:        	White=2     	Black=3      Strong:       	White=1     	---} 1-0